[Event "Titled Tuesday Blitz April 19 Early 2022"]
[White "Sanchez, Robert"]
[Black "De Arruda, Leandro Formes"]
[WhiteFideId "2034360"]
[BlackFideId "22722009"]
[WhiteElo "2372"]
[BlackElo "1852"]
[Result "1-0"]
[Round "11"]
[TimeControl "180+1"]
[Date "2022.04.19"]
[WhiteClock "0:00:45"]
[BlackClock "0:00:04"]

1. e4 {[%clk 0:03:00]}  e6 {[%clk 0:02:59]} 2. d4 {[%clk 0:03:00]}  d5 {[%clk 0:03:00]} 3. Nd2 {[%clk 0:03:01]}  dxe4 {[%clk 0:03:01]} 4. Nxe4 {[%clk 0:03:01]}  Nd7 {[%clk 0:03:02]} 5. Nf3 {[%clk 0:03:01]}  Ngf6 {[%clk 0:03:03]} 6. Ng3 {[%clk 0:03:02]}  Be7 {[%clk 0:03:03]} 7. Bd3 {[%clk 0:03:02]}  O-O {[%clk 0:03:04]} 8. Bd2 {[%clk 0:03:03]}  b6 {[%clk 0:03:04]} 9. Qe2 {[%clk 0:03:03]}  Bb7 {[%clk 0:03:05]} 10. O-O-O {[%clk 0:03:04]}  a5 {[%clk 0:03:04]} 11. Kb1 {[%clk 0:03:04]}  a4 {[%clk 0:03:04]} 12. c4 {[%clk 0:03:03]}  b5 {[%clk 0:03:02]} 13. Ne5 {[%clk 0:02:55]}  bxc4 {[%clk 0:03:01]} 14. Bxc4 {[%clk 0:02:56]}  Bd5 {[%clk 0:02:56]} 15. Bxd5 {[%clk 0:02:52]}  Nxd5 {[%clk 0:02:54]} 16. Nc6 {[%clk 0:02:46]}  Qe8 {[%clk 0:02:53]} 17. Rhe1 {[%clk 0:02:46]}  N7b6 {[%clk 0:02:41]} 18. Nxe7+ {[%clk 0:02:44]}  Qxe7 {[%clk 0:02:42]} 19. h4 {[%clk 0:02:37]}  Rfb8 {[%clk 0:02:41]} 20. h5 {[%clk 0:02:36]}  a3 {[%clk 0:02:35]} 21. b3 {[%clk 0:02:35]}  Na4 {[%clk 0:02:34]} 22. Qd3 {[%clk 0:02:34]}  c5 {[%clk 0:02:20]} 23. dxc5 {[%clk 0:02:29]}  Qxc5 {[%clk 0:02:21]} 24. Rc1 {[%clk 0:02:23]}  Qxf2 {[%clk 0:02:15]} 25. Re2 {[%clk 0:02:23]}  Qf6 {[%clk 0:02:11]} 26. Be1 {[%clk 0:02:17]}  Nf4 {[%clk 0:02:02]} 27. Qf3 {[%clk 0:02:12]}  e5 {[%clk 0:01:31]} 28. Rec2 {[%clk 0:02:04]}  Qe6 {[%clk 0:01:18]} 29. Ne4 {[%clk 0:01:30]}  h6 {[%clk 0:01:12]} 30. Nc5 {[%clk 0:01:18]}  Nxc5 {[%clk 0:00:49]} 31. Rxc5 {[%clk 0:01:19]}  Qf5+ {[%clk 0:00:25]} 32. Ka1 {[%clk 0:01:17]}  Qe6 {[%clk 0:00:12]} 33. g3 {[%clk 0:01:14]}  Nd5 {[%clk 0:00:08]} 34. Qxd5 {[%clk 0:01:12]}  Qg4 {[%clk 0:00:07]} 35. Qxe5 {[%clk 0:01:02]}  Re8 {[%clk 0:00:07]} 36. Qf4 {[%clk 0:00:59]}  Qe2 {[%clk 0:00:07]} 37. Bc3 {[%clk 0:00:54]}  Rac8 {[%clk 0:00:05]} 38. Qd4 {[%clk 0:00:45]}  Rcd8 {[%clk 0:00:04]} 39. Qxg7# {[%clk 0:00:45]} 1-0


[Site "https://www.chess.com"]

[Event "Titled Tuesday Blitz April 19 Early 2022"]
[White "Seo, Jung Min"]
[Black "Pinheiro, Iung Alicio de O."]
[WhiteFideId "1734687"]
[BlackFideId "2104350"]
[WhiteElo "2401"]
[BlackElo "2586"]
[Result "1-0"]
[Round "11"]
[TimeControl "180+1"]
[Date "2022.04.19"]
[WhiteClock "0:00:45"]
[BlackClock "0:00:19"]

1. d4 {[%clk 0:03:00]}  Nf6 {[%clk 0:02:59]} 2. c4 {[%clk 0:03:01]}  g6 {[%clk 0:02:58]} 3. Nc3 {[%clk 0:03:00]}  d5 {[%clk 0:02:58]} 4. Nf3 {[%clk 0:02:59]}  Bg7 {[%clk 0:02:58]} 5. Qb3 {[%clk 0:02:55]}  dxc4 {[%clk 0:02:56]} 6. Qxc4 {[%clk 0:02:56]}  O-O {[%clk 0:02:57]} 7. e4 {[%clk 0:02:56]}  Nc6 {[%clk 0:02:57]} 8. Be2 {[%clk 0:02:51]}  Bg4 {[%clk 0:02:56]} 9. d5 {[%clk 0:02:48]}  Bxf3 {[%clk 0:02:50]} 10. gxf3 {[%clk 0:02:47]}  Na5 {[%clk 0:02:30]} 11. Qd3 {[%clk 0:02:31]}  c6 {[%clk 0:02:22]} 12. b4 {[%clk 0:02:26]}  cxd5 {[%clk 0:01:59]} 13. bxa5 {[%clk 0:02:26]}  dxe4 {[%clk 0:01:30]} 14. Qxd8 {[%clk 0:02:25]}  Rfxd8 {[%clk 0:01:31]} 15. Rb1 {[%clk 0:02:18]}  exf3 {[%clk 0:01:24]} 16. Bxf3 {[%clk 0:02:18]}  Rac8 {[%clk 0:01:24]} 17. Ne2 {[%clk 0:02:14]}  b6 {[%clk 0:01:06]} 18. axb6 {[%clk 0:02:11]}  axb6 {[%clk 0:01:07]} 19. Be3 {[%clk 0:02:05]}  Nd5 {[%clk 0:01:01]} 20. Bxd5 {[%clk 0:01:59]}  Rxd5 {[%clk 0:01:02]} 21. Rxb6 {[%clk 0:01:56]}  Ra5 {[%clk 0:00:58]} 22. Nc1 {[%clk 0:01:40]}  f5 {[%clk 0:00:35]} 23. O-O {[%clk 0:01:35]}  Kf7 {[%clk 0:00:29]} 24. Rd1 {[%clk 0:01:30]}  Rc2 {[%clk 0:00:28]} 25. Rb7 {[%clk 0:01:24]}  Bf6 {[%clk 0:00:28]} 26. Rbd7 {[%clk 0:01:13]}  g5 {[%clk 0:00:27]} 27. R7d2 {[%clk 0:01:11]}  Rc6 {[%clk 0:00:27]} 28. Nb3 {[%clk 0:01:09]}  Ra3 {[%clk 0:00:26]} 29. Nd4 {[%clk 0:01:08]}  Rca6 {[%clk 0:00:24]} 30. Nxf5 {[%clk 0:01:06]}  Rxa2 {[%clk 0:00:24]} 31. Rxa2 {[%clk 0:01:06]}  Rxa2 {[%clk 0:00:25]} 32. Kg2 {[%clk 0:01:06]}  h5 {[%clk 0:00:25]} 33. Ng3 {[%clk 0:01:03]}  Kg6 {[%clk 0:00:25]} 34. h3 {[%clk 0:01:02]}  g4 {[%clk 0:00:24]} 35. hxg4 {[%clk 0:01:01]}  hxg4 {[%clk 0:00:24]} 36. Rc1 {[%clk 0:00:57]}  Ra4 {[%clk 0:00:23]} 37. Rc2 {[%clk 0:00:56]}  Rb4 {[%clk 0:00:23]} 38. Ne2 {[%clk 0:00:56]}  Ra4 {[%clk 0:00:23]} 39. Rd2 {[%clk 0:00:57]}  Kf5 {[%clk 0:00:23]} 40. Bd4 {[%clk 0:00:55]}  e5 {[%clk 0:00:22]} 41. Be3 {[%clk 0:00:55]}  Bh4 {[%clk 0:00:22]} 42. Ng3+ {[%clk 0:00:54]}  Ke6 {[%clk 0:00:22]} 43. Rb2 {[%clk 0:00:53]}  Be7 {[%clk 0:00:20]} 44. Rb6+ {[%clk 0:00:52]}  Kd5 {[%clk 0:00:20]} 45. Nf5 {[%clk 0:00:52]}  Bc5 {[%clk 0:00:19]} 46. Rb5 {[%clk 0:00:51]}  Rc4 {[%clk 0:00:19]} 47. Kg3 {[%clk 0:00:47]}  Kc6 {[%clk 0:00:19]} 48. Rxc5+ {[%clk 0:00:47]}  Rxc5 {[%clk 0:00:20]} 49. Bxc5 {[%clk 0:00:46]}  Kxc5 {[%clk 0:00:21]} 50. Kxg4 {[%clk 0:00:47]}  Kd5 {[%clk 0:00:21]} 51. Kf3 {[%clk 0:00:46]}  Ke6 {[%clk 0:00:20]} 52. Ke4 {[%clk 0:00:46]}  Kf6 {[%clk 0:00:21]} 53. Ne3 {[%clk 0:00:45]}  Ke6 {[%clk 0:00:19]} 54. Ng4 {[%clk 0:00:45]} 1-0


[Site "https://www.chess.com"]

[Event "Titled Tuesday Blitz April 19 Early 2022"]
[White "Sharafiev, Azat"]
[Black "Kaasen, Tor Fredrik"]
[WhiteFideId "4186214"]
[BlackFideId "1516647"]
[WhiteElo "2299"]
[BlackElo "2335"]
[Result "1-0"]
[Round "11"]
[TimeControl "180+1"]
[Date "2022.04.19"]
[WhiteClock "0:00:17"]
[BlackClock "0:00:01"]

1. d4 {[%clk 0:03:00]}  Nf6 {[%clk 0:03:00]} 2. Nf3 {[%clk 0:02:59]}  g6 {[%clk 0:03:00]} 3. Bg5 {[%clk 0:02:59]}  Bg7 {[%clk 0:03:00]} 4. Nbd2 {[%clk 0:03:00]}  h6 {[%clk 0:02:58]} 5. Bh4 {[%clk 0:03:00]}  O-O {[%clk 0:02:58]} 6. e4 {[%clk 0:02:58]}  d6 {[%clk 0:02:59]} 7. Bc4 {[%clk 0:02:58]}  c5 {[%clk 0:02:59]} 8. dxc5 {[%clk 0:02:54]}  dxc5 {[%clk 0:03:00]} 9. c3 {[%clk 0:02:53]}  Nc6 {[%clk 0:03:00]} 10. Qe2 {[%clk 0:02:53]}  Nh5 {[%clk 0:03:00]} 11. Qe3 {[%clk 0:02:52]}  Qb6 {[%clk 0:02:51]} 12. Rb1 {[%clk 0:02:45]}  Rd8 {[%clk 0:02:43]} 13. Nb3 {[%clk 0:02:41]}  Bg4 {[%clk 0:02:17]} 14. Qxc5 {[%clk 0:02:19]}  Bxf3 {[%clk 0:02:11]} 15. gxf3 {[%clk 0:02:15]}  Nf4 {[%clk 0:01:58]} 16. Bg3 {[%clk 0:02:06]}  Nd3+ {[%clk 0:01:47]} 17. Bxd3 {[%clk 0:02:06]}  Rxd3 {[%clk 0:01:48]} 18. Qxb6 {[%clk 0:02:04]}  axb6 {[%clk 0:01:49]} 19. Ke2 {[%clk 0:02:02]}  Rd7 {[%clk 0:01:34]} 20. a3 {[%clk 0:01:59]}  g5 {[%clk 0:01:19]} 21. f4 {[%clk 0:01:56]}  Ra4 {[%clk 0:01:13]} 22. fxg5 {[%clk 0:01:52]}  hxg5 {[%clk 0:01:08]} 23. f3 {[%clk 0:01:52]}  g4 {[%clk 0:01:08]} 24. Rbd1 {[%clk 0:01:48]}  Rxd1 {[%clk 0:01:07]} 25. Rxd1 {[%clk 0:01:48]}  Ne5 {[%clk 0:01:00]} 26. Bxe5 {[%clk 0:01:46]}  Bxe5 {[%clk 0:01:01]} 27. Rg1 {[%clk 0:01:35]}  Bxh2 {[%clk 0:01:01]} 28. Rxg4+ {[%clk 0:01:35]}  Kf8 {[%clk 0:01:01]} 29. Rh4 {[%clk 0:01:28]}  Be5 {[%clk 0:00:56]} 30. Rh5 {[%clk 0:01:28]}  f6 {[%clk 0:00:50]} 31. Rh8+ {[%clk 0:01:28]}  Kf7 {[%clk 0:00:49]} 32. Rd8 {[%clk 0:01:23]}  Ke6 {[%clk 0:00:40]} 33. Ke3 {[%clk 0:01:22]}  Rc4 {[%clk 0:00:30]} 34. f4 {[%clk 0:01:04]}  Bc7 {[%clk 0:00:30]} 35. Nd4+ {[%clk 0:01:03]}  Kf7 {[%clk 0:00:31]} 36. Rd7 {[%clk 0:00:56]}  Ke8 {[%clk 0:00:26]} 37. Rd5 {[%clk 0:00:56]}  Bd6 {[%clk 0:00:22]} 38. Kd3 {[%clk 0:00:49]}  Ra4 {[%clk 0:00:19]} 39. Rb5 {[%clk 0:00:46]}  Bc7 {[%clk 0:00:11]} 40. Ne6 {[%clk 0:00:45]}  Kd7 {[%clk 0:00:10]} 41. Nxc7 {[%clk 0:00:42]}  Kxc7 {[%clk 0:00:11]} 42. Rd5 {[%clk 0:00:41]}  Ra8 {[%clk 0:00:10]} 43. Kd4 {[%clk 0:00:32]}  Rh8 {[%clk 0:00:10]} 44. e5 {[%clk 0:00:32]}  Rh4 {[%clk 0:00:09]} 45. Ke4 {[%clk 0:00:32]}  Rh2 {[%clk 0:00:08]} 46. Rb5 {[%clk 0:00:32]}  Re2+ {[%clk 0:00:07]} 47. Kd5 {[%clk 0:00:29]}  Rf2 {[%clk 0:00:06]} 48. Ke4 {[%clk 0:00:27]}  Re2+ {[%clk 0:00:06]} 49. Kf5 {[%clk 0:00:27]}  Kc6 {[%clk 0:00:06]} 50. a4 {[%clk 0:00:24]}  fxe5 {[%clk 0:00:04]} 51. fxe5 {[%clk 0:00:24]}  Rh2 {[%clk 0:00:05]} 52. Ke6 {[%clk 0:00:24]}  Rh7 {[%clk 0:00:05]} 53. b3 {[%clk 0:00:20]}  Kc7 {[%clk 0:00:05]} 54. b4 {[%clk 0:00:19]}  Kc6 {[%clk 0:00:06]} 55. c4 {[%clk 0:00:20]}  Rh4 {[%clk 0:00:05]} 56. Kxe7 {[%clk 0:00:19]}  Rxc4 {[%clk 0:00:02]} 57. e6 {[%clk 0:00:20]}  Re4 {[%clk 0:00:02]} 58. Rf5 {[%clk 0:00:18]}  Rxb4 {[%clk 0:00:01]} 59. Rf3 {[%clk 0:00:17]} 1-0


[Site "https://www.chess.com"]

[Event "Titled Tuesday Blitz April 19 Early 2022"]
[White "Shohat, Yotam"]
[Black "Lagunov, Evgenij"]
[WhiteFideId "2813955"]
[BlackFideId "4125363"]
[WhiteElo "2119"]
[BlackElo "2200"]
[Result "1-0"]
[Round "11"]
[TimeControl "180+1"]
[Date "2022.04.19"]
[WhiteClock "0:02:39"]
[BlackClock "0:00:38"]

1. Nf3 {[%clk 0:03:00]}  d5 {[%clk 0:02:59]} 2. g3 {[%clk 0:03:00]}  e6 {[%clk 0:02:59]} 3. Bg2 {[%clk 0:03:00]}  Nf6 {[%clk 0:02:59]} 4. O-O {[%clk 0:03:01]}  Be7 {[%clk 0:03:00]} 5. d3 {[%clk 0:03:01]}  O-O {[%clk 0:02:59]} 6. Nbd2 {[%clk 0:03:01]}  b6 {[%clk 0:02:56]} 7. e4 {[%clk 0:03:01]}  Bb7 {[%clk 0:02:56]} 8. e5 {[%clk 0:03:02]}  Nfd7 {[%clk 0:02:56]} 9. Re1 {[%clk 0:03:02]}  c5 {[%clk 0:02:55]} 10. Nf1 {[%clk 0:03:02]}  Nc6 {[%clk 0:02:55]} 11. h4 {[%clk 0:03:02]}  Qc7 {[%clk 0:02:49]} 12. Bf4 {[%clk 0:03:01]}  d4 {[%clk 0:02:42]} 13. N1h2 {[%clk 0:03:00]}  Nb4 {[%clk 0:02:42]} 14. Ng5 {[%clk 0:02:58]}  Bxg2 {[%clk 0:02:36]} 15. Kxg2 {[%clk 0:02:59]}  Bxg5 {[%clk 0:02:33]} 16. hxg5 {[%clk 0:02:58]}  Nd5 {[%clk 0:02:28]} 17. Qh5 {[%clk 0:02:56]}  Qc6 {[%clk 0:02:04]} 18. f3 {[%clk 0:02:53]}  f6 {[%clk 0:01:49]} 19. Ng4 {[%clk 0:02:42]}  Nxf4+ {[%clk 0:01:41]} 20. gxf4 {[%clk 0:02:41]}  fxg5 {[%clk 0:01:36]} 21. Rh1 {[%clk 0:02:40]}  h6 {[%clk 0:01:16]} 22. Nxh6+ {[%clk 0:02:38]}  gxh6 {[%clk 0:01:13]} 23. Qg6+ {[%clk 0:02:38]}  Kh8 {[%clk 0:00:38]} 24. Rxh6# {[%clk 0:02:39]} 1-0


[Site "https://www.chess.com"]

[Event "Titled Tuesday Blitz April 19 Early 2022"]
[White "Silva Lucena, Cristian"]
[Black "Bashirli, Saadat"]
[WhiteFideId "2232588"]
[BlackFideId "13429990"]
[WhiteElo "2223"]
[BlackElo "1173"]
[Result "1-0"]
[Round "11"]
[TimeControl "180+1"]
[Date "2022.04.19"]
[WhiteClock "0:00:22"]
[BlackClock "0:01:21"]

1. Nf3 {[%clk 0:02:44]}  d5 {[%clk 0:02:58]} 2. g3 {[%clk 0:01:49]}  Nf6 {[%clk 0:02:56]} 3. Bg2 {[%clk 0:01:48]}  Bg4 {[%clk 0:02:54]} 4. O-O {[%clk 0:01:49]}  e6 {[%clk 0:02:53]} 5. h3 {[%clk 0:01:48]}  Bf5 {[%clk 0:02:48]} 6. d3 {[%clk 0:01:48]}  Nc6 {[%clk 0:02:47]} 7. Nc3 {[%clk 0:01:47]}  Bd6 {[%clk 0:02:29]} 8. Nh4 {[%clk 0:00:31]}  Bg6 {[%clk 0:02:26]} 9. Nxg6 {[%clk 0:00:31]}  hxg6 {[%clk 0:02:26]} 10. e4 {[%clk 0:00:31]}  dxe4 {[%clk 0:02:24]} 11. Nxe4 {[%clk 0:00:32]}  Nxe4 {[%clk 0:02:23]} 12. dxe4 {[%clk 0:00:32]}  O-O {[%clk 0:02:22]} 13. h4 {[%clk 0:00:32]}  Bc5 {[%clk 0:02:20]} 14. Qg4 {[%clk 0:00:30]}  Ne5 {[%clk 0:02:14]} 15. Qe2 {[%clk 0:00:29]}  Qe7 {[%clk 0:02:11]} 16. h5 {[%clk 0:00:29]}  gxh5 {[%clk 0:01:57]} 17. Qxh5 {[%clk 0:00:30]}  Bd6 {[%clk 0:01:38]} 18. Bg5 {[%clk 0:00:29]}  f6 {[%clk 0:01:37]} 19. Bc1 {[%clk 0:00:27]}  Qf7 {[%clk 0:01:36]} 20. Qe2 {[%clk 0:00:27]}  Qg6 {[%clk 0:01:35]} 21. c3 {[%clk 0:00:27]}  Rad8 {[%clk 0:01:33]} 22. a4 {[%clk 0:00:25]}  Bc5 {[%clk 0:01:31]} 23. b4 {[%clk 0:00:25]}  Bd6 {[%clk 0:01:30]} 24. Be3 {[%clk 0:00:25]}  f5 {[%clk 0:01:25]} 25. exf5 {[%clk 0:00:21]}  exf5 {[%clk 0:01:25]} 26. Bd5+ {[%clk 0:00:20]}  Kh8 {[%clk 0:01:23]} 27. Kg2 {[%clk 0:00:20]}  c6 {[%clk 0:01:23]} 28. Rh1+ {[%clk 0:00:21]}  Qh7 {[%clk 0:01:20]} 29. Rxh7+ {[%clk 0:00:21]}  Kxh7 {[%clk 0:01:21]} 30. Rh1+ {[%clk 0:00:21]}  Kg6 {[%clk 0:01:20]} 31. Qh5+ {[%clk 0:00:22]}  Kf6 {[%clk 0:01:21]} 32. Bg5# {[%clk 0:00:22]} 1-0


[Site "https://www.chess.com"]

[Event "Titled Tuesday Blitz April 19 Early 2022"]
[White "Sjugirov, Sanan"]
[Black "Zhigalko, Sergei"]
[WhiteFideId "4189302"]
[BlackFideId "13502956"]
[WhiteElo "2602"]
[BlackElo "2662"]
[Result "0-1"]
[Round "11"]
[TimeControl "180+1"]
[Date "2022.04.19"]
[WhiteClock "0:00:04"]
[BlackClock "0:00:17"]

1. e4 {[%clk 0:03:00]}  c5 {[%clk 0:03:00]} 2. Nc3 {[%clk 0:03:01]}  Nc6 {[%clk 0:03:00]} 3. Nge2 {[%clk 0:03:01]}  Nf6 {[%clk 0:03:00]} 4. d4 {[%clk 0:03:01]}  cxd4 {[%clk 0:03:01]} 5. Nxd4 {[%clk 0:03:02]}  e5 {[%clk 0:03:02]} 6. Ndb5 {[%clk 0:03:02]}  d6 {[%clk 0:03:03]} 7. Bg5 {[%clk 0:03:02]}  a6 {[%clk 0:03:03]} 8. Na3 {[%clk 0:03:02]}  b5 {[%clk 0:03:04]} 9. Nd5 {[%clk 0:03:02]}  Be7 {[%clk 0:03:04]} 10. Bxf6 {[%clk 0:03:03]}  Bxf6 {[%clk 0:03:05]} 11. c4 {[%clk 0:03:03]}  b4 {[%clk 0:03:05]} 12. Nc2 {[%clk 0:03:04]}  O-O {[%clk 0:03:06]} 13. g3 {[%clk 0:03:01]}  a5 {[%clk 0:03:06]} 14. Bg2 {[%clk 0:02:58]}  Bg5 {[%clk 0:03:06]} 15. O-O {[%clk 0:02:57]}  Ne7 {[%clk 0:02:59]} 16. h4 {[%clk 0:02:24]}  Bh6 {[%clk 0:02:57]} 17. Nde3 {[%clk 0:02:24]}  Bxe3 {[%clk 0:02:56]} 18. Nxe3 {[%clk 0:02:24]}  Qc7 {[%clk 0:02:49]} 19. b3 {[%clk 0:02:21]}  Be6 {[%clk 0:02:47]} 20. Qd3 {[%clk 0:02:19]}  Rfd8 {[%clk 0:02:43]} 21. Kh1 {[%clk 0:02:11]}  Nc6 {[%clk 0:02:43]} 22. Rad1 {[%clk 0:02:08]}  a4 {[%clk 0:02:43]} 23. Nc2 {[%clk 0:01:56]}  axb3 {[%clk 0:02:40]} 24. axb3 {[%clk 0:01:57]}  Ra2 {[%clk 0:02:39]} 25. Kh2 {[%clk 0:01:38]}  Qa7 {[%clk 0:02:33]} 26. f4 {[%clk 0:01:34]}  f6 {[%clk 0:01:53]} 27. f5 {[%clk 0:01:34]}  Bf7 {[%clk 0:01:53]} 28. g4 {[%clk 0:01:34]}  h6 {[%clk 0:01:43]} 29. Bf3 {[%clk 0:01:26]}  Rb2 {[%clk 0:01:35]} 30. Ra1 {[%clk 0:00:55]}  Qd4 {[%clk 0:01:35]} 31. Be2 {[%clk 0:00:38]}  Qxd3 {[%clk 0:01:30]} 32. Bxd3 {[%clk 0:00:39]}  Rxb3 {[%clk 0:01:31]} 33. Rfd1 {[%clk 0:00:40]}  Rc3 {[%clk 0:01:27]} 34. Ra6 {[%clk 0:00:39]}  b3 {[%clk 0:01:19]} 35. Ne1 {[%clk 0:00:39]}  Nb4 {[%clk 0:01:18]} 36. Rb6 {[%clk 0:00:40]}  Nxd3 {[%clk 0:01:16]} 37. Rxd3 {[%clk 0:00:38]}  Rxd3 {[%clk 0:01:16]} 38. Nxd3 {[%clk 0:00:39]}  Bxc4 {[%clk 0:01:16]} 39. Nb2 {[%clk 0:00:26]}  d5 {[%clk 0:01:01]} 40. Kg3 {[%clk 0:00:20]}  Ra8 {[%clk 0:01:01]} 41. exd5 {[%clk 0:00:19]}  Bxd5 {[%clk 0:01:02]} 42. Rb5 {[%clk 0:00:19]}  Ra2 {[%clk 0:00:58]} 43. Nd3 {[%clk 0:00:19]}  Rg2+ {[%clk 0:00:45]} 44. Kh3 {[%clk 0:00:19]}  Rd2 {[%clk 0:00:45]} 45. Rb8+ {[%clk 0:00:05]}  Kh7 {[%clk 0:00:40]} 46. Nc5 {[%clk 0:00:06]}  b2 {[%clk 0:00:26]} 47. Kg3 {[%clk 0:00:05]}  Ba2 {[%clk 0:00:21]} 48. Ne6 {[%clk 0:00:04]}  b1=Q {[%clk 0:00:17]} 49. Nf8+ {[%clk 0:00:04]}  Kg8 {[%clk 0:00:17]} 0-1


[Site "https://www.chess.com"]

[Event "Titled Tuesday Blitz April 19 Early 2022"]
[White "Soucek, Petr"]
[Black "Gracia Alvarez, Gerardo Antonio"]
[WhiteFideId "23715170"]
[BlackFideId "5109124"]
[WhiteElo "1979"]
[BlackElo "2139"]
[Result "0-1"]
[Round "11"]
[TimeControl "180+1"]
[Date "2022.04.19"]
[WhiteClock "0:00:13"]
[BlackClock "0:00:05"]

1. e4 {[%clk 0:03:00]}  c5 {[%clk 0:02:59]} 2. Nf3 {[%clk 0:02:59]}  Nc6 {[%clk 0:03:00]} 3. Bb5 {[%clk 0:02:57]}  d6 {[%clk 0:03:00]} 4. O-O {[%clk 0:02:55]}  Bd7 {[%clk 0:03:01]} 5. Re1 {[%clk 0:02:56]}  Nf6 {[%clk 0:03:00]} 6. c3 {[%clk 0:02:56]}  a6 {[%clk 0:03:00]} 7. Bf1 {[%clk 0:02:56]}  Bg4 {[%clk 0:02:59]} 8. h3 {[%clk 0:02:55]}  Bxf3 {[%clk 0:02:59]} 9. Qxf3 {[%clk 0:02:56]}  g6 {[%clk 0:02:55]} 10. Na3 {[%clk 0:02:56]}  Bg7 {[%clk 0:02:54]} 11. Nc4 {[%clk 0:02:56]}  Nd7 {[%clk 0:02:45]} 12. d3 {[%clk 0:02:49]}  O-O {[%clk 0:02:43]} 13. Bg5 {[%clk 0:02:45]}  h6 {[%clk 0:02:40]} 14. Bh4 {[%clk 0:02:45]}  b5 {[%clk 0:02:33]} 15. Ne3 {[%clk 0:02:36]}  b4 {[%clk 0:02:17]} 16. Rac1 {[%clk 0:02:03]}  Re8 {[%clk 0:02:15]} 17. Qe2 {[%clk 0:01:30]}  Rb8 {[%clk 0:02:06]} 18. f4 {[%clk 0:01:29]}  bxc3 {[%clk 0:02:01]} 19. bxc3 {[%clk 0:01:30]}  Qa5 {[%clk 0:02:00]} 20. Nc4 {[%clk 0:01:26]}  Qa4 {[%clk 0:02:00]} 21. g4 {[%clk 0:01:18]}  Na5 {[%clk 0:01:49]} 22. Ne3 {[%clk 0:01:14]}  Qa3 {[%clk 0:01:45]} 23. Qd2 {[%clk 0:01:02]}  Rb2 {[%clk 0:01:41]} 24. Rc2 {[%clk 0:01:00]}  Rxc2 {[%clk 0:01:37]} 25. Qxc2 {[%clk 0:00:57]}  Qxc3 {[%clk 0:01:36]} 26. Qxc3 {[%clk 0:00:54]}  Bxc3 {[%clk 0:01:37]} 27. Rb1 {[%clk 0:00:55]}  Bd4 {[%clk 0:01:34]} 28. Kf2 {[%clk 0:00:49]}  Kf8 {[%clk 0:01:24]} 29. Kf3 {[%clk 0:00:47]}  Rb8 {[%clk 0:01:24]} 30. Rxb8+ {[%clk 0:00:46]}  Nxb8 {[%clk 0:01:25]} 31. Nd5 {[%clk 0:00:47]}  Nac6 {[%clk 0:01:17]} 32. Be2 {[%clk 0:00:44]}  Nd7 {[%clk 0:01:14]} 33. Bd1 {[%clk 0:00:44]}  e6 {[%clk 0:01:13]} 34. Nc7 {[%clk 0:00:42]}  Ndb8 {[%clk 0:00:53]} 35. Bb3 {[%clk 0:00:15]}  Bc3 {[%clk 0:00:50]} 36. Bc4 {[%clk 0:00:14]}  a5 {[%clk 0:00:27]} 37. f5 {[%clk 0:00:11]}  exf5 {[%clk 0:00:24]} 38. gxf5 {[%clk 0:00:12]}  g5 {[%clk 0:00:22]} 39. Bg3 {[%clk 0:00:11]}  Be5 {[%clk 0:00:22]} 40. Bf2 {[%clk 0:00:11]}  a4 {[%clk 0:00:16]} 41. Bb5 {[%clk 0:00:10]}  a3 {[%clk 0:00:16]} 42. Nd5 {[%clk 0:00:07]}  Nb4 {[%clk 0:00:14]} 43. Nxb4 {[%clk 0:00:04]}  cxb4 {[%clk 0:00:15]} 44. Bc4 {[%clk 0:00:05]}  Nc6 {[%clk 0:00:15]} 45. Bb3 {[%clk 0:00:06]}  Bd4 {[%clk 0:00:14]} 46. Be1 {[%clk 0:00:06]}  Bc5 {[%clk 0:00:13]} 47. Ke2 {[%clk 0:00:05]}  Nd4+ {[%clk 0:00:12]} 48. Kd2 {[%clk 0:00:06]}  Nxb3+ {[%clk 0:00:12]} 49. Kc2 {[%clk 0:00:06]}  Nd4+ {[%clk 0:00:11]} 50. Kd2 {[%clk 0:00:06]}  b3 {[%clk 0:00:11]} 51. Kc1 {[%clk 0:00:04]}  bxa2 {[%clk 0:00:10]} 52. Bc3 {[%clk 0:00:04]}  Nb3+ {[%clk 0:00:10]} 53. Kc2 {[%clk 0:00:04]}  a1=Q {[%clk 0:00:10]} 54. Bxa1 {[%clk 0:00:05]}  Nxa1+ {[%clk 0:00:10]} 55. Kc3 {[%clk 0:00:06]}  Ke7 {[%clk 0:00:08]} 56. Kc4 {[%clk 0:00:06]}  Nc2 {[%clk 0:00:08]} 57. Kc3 {[%clk 0:00:06]}  a2 {[%clk 0:00:07]} 58. Kxc2 {[%clk 0:00:05]}  a1=Q {[%clk 0:00:07]} 59. Kb3 {[%clk 0:00:06]}  Qd4 {[%clk 0:00:07]} 60. Kc2 {[%clk 0:00:06]}  Qe3 {[%clk 0:00:07]} 61. Kc3 {[%clk 0:00:07]}  Bd4+ {[%clk 0:00:07]} 62. Kc4 {[%clk 0:00:07]}  Qxh3 {[%clk 0:00:07]} 63. Kd5 {[%clk 0:00:07]}  Bf6 {[%clk 0:00:06]} 64. d4 {[%clk 0:00:07]}  Qb3+ {[%clk 0:00:06]} 65. Kc6 {[%clk 0:00:07]}  Bxd4 {[%clk 0:00:06]} 66. e5 {[%clk 0:00:08]}  Qb6+ {[%clk 0:00:06]} 67. Kd5 {[%clk 0:00:08]}  Qc5+ {[%clk 0:00:06]} 68. Ke4 {[%clk 0:00:08]}  Qxe5+ {[%clk 0:00:07]} 69. Kd3 {[%clk 0:00:09]}  Qxf5+ {[%clk 0:00:06]} 70. Kc4 {[%clk 0:00:10]}  g4 {[%clk 0:00:05]} 71. Kb3 {[%clk 0:00:10]}  g3 {[%clk 0:00:05]} 72. Kb4 {[%clk 0:00:11]}  g2 {[%clk 0:00:05]} 73. Kc4 {[%clk 0:00:12]}  g1=Q {[%clk 0:00:05]} 74. Kb4 {[%clk 0:00:12]}  Qgb1+ {[%clk 0:00:06]} 75. Kc4 {[%clk 0:00:13]}  Qc5# {[%clk 0:00:05]} 0-1


[Site "https://www.chess.com"]